bitfinex/quotes_ETHUSD_20250903
["timestamp","ask_amount","ask_price","bid_price","bid_amount"]
[1756871325510,8.5197712,4335.3,4335.2,0.1152]
[1756871325715,9.75905033,4335.3,4335.2,0.1152]
[1756871325890,9.87425033,4335.3,4335.0,7.999]
[1756871326093,0.9152,4335.2,4335.0,7.999]
[1756871326400,1.2285,4335.1,4335.0,7.999]
[1756871329021,5.1005,4335.1,4335.0,7.999]
[1756871329236,6.47512503,4335.1,4335.0,7.999]
[1756871332098,7.16869048,4335.1,4335.0,7.999]
[1756871339336,6.69029048,4335.1,4335.0,7.999]
[1756871340138,7.17709048,4335.1,4335.0,7.999]
[1756871343123,12.48384234,4335.1,4335.0,7.999]
[1756871348850,10.17709048,4335.1,4335.0,7.999]
[1756871349050,9.69029048,4335.1,4335.0,7.999]
[1756871349261,4.56556545,4335.1,4335.0,8.7615]
[1756871349430,3.872,4335.1,4335.0,8.7615]
[1756871349818,0.69355743,4335.2,4335.0,8.7615]
[1756871350014,0.69355743,4335.2,4335.0,8.2878]
[1756871350015,6.872,4335.1,4335.0,8.2878]
[1756871350647,3.0,4335.1,4335.0,8.7615]
[1756871350847,6.872,4335.1,4335.0,8.7615]
[1756871351172,0.1162,4335.3,4335.0,8.7615]
[1756871351342,0.1152,4335.1,4335.0,9.16435]
[1756871351661,0.1152,4335.1,4335.0,12.39234372]
[1756871352535,3.9872,4335.1,4335.0,12.39234372]
[1756871353865,0.1152,4335.1,4335.0,11.51579372]
[1756871354068,3.9872,4335.1,4335.0,11.51579372]
[1756871355150,0.001,4335.3,4335.0,11.51579372]
[1756871355151,0.001,4335.3,4335.2,2.30669865]
[1756871355468,0.001,4335.3,4335.2,2.32976563]
[1756871355667,0.001,4335.3,4335.2,3.65496563]
[1756871356475,0.001,4335.3,4335.2,3.63189865]
[1756871356645,0.001,4335.3,4335.2,3.65496563]
[1756871356832,0.001,4335.3,4335.2,7.52696563]
[1756871357032,0.001,4335.3,4335.2,7.50389865]
[1756871357243,0.001,4335.3,4335.2,8.29589865]
[1756871358742,0.001,4335.3,4335.2,19.39589865]
[1756871361649,0.001,4335.3,4335.2,7.84839865]
[1756871361843,0.001,4335.3,4335.2,8.29589865]
[1756871362253,0.001,4335.3,4335.2,19.39589865]
[1756871363342,0.001,4335.3,4335.2,18.94839865]
[1756871363547,0.001,4335.3,4335.2,19.39589865]
[1756871363747,0.001,4335.3,4335.2,15.07639865]
[1756871363948,0.001,4335.3,4335.2,18.94739865]
[1756871365142,0.001,4335.3,4335.2,7.84739865]
[1756871365356,0.001,4335.3,4335.2,8.29489865]
[1756871365882,0.001,4335.3,4335.2,19.39489865]
[1756871366462,0.001,4335.3,4335.2,13.81069865]
[1756871366659,0.001,4335.3,4335.2,17.68069865]
[1756871366850,0.001,4335.3,4335.2,7.05439865]
[1756871370293,0.001,4335.3,4335.2,3.18439865]
[1756871370499,0.001,4335.3,4335.2,6.58069865]
[1756871370998,0.001,4335.3,4335.2,7.06479865]
[1756871371592,0.001,4335.3,4335.2,17.68069865]
[1756871372580,0.001,4335.3,4335.2,18.16479865]
[1756871373695,0.001,4335.3,4335.2,13.52189865]
[1756871373898,0.2898,4335.3,4335.2,6.29189865]
[1756871374493,0.001,4335.3,4335.2,6.29189865]
[1756871376399,0.001,4335.3,4335.2,7.88449865]
[1756871376574,0.001,4335.3,4335.2,8.32769865]
[1756871377894,0.001,4335.3,4335.2,7.88449865]
[1756871378460,0.001,4335.3,4335.2,7.56799865]
[1756871378682,0.001,4335.3,4335.2,7.88449865]
[1756871379096,0.001,4335.3,4335.2,8.32769865]
[1756871380697,0.001,4335.3,4335.2,19.42769865]
[1756871380864,0.001,4335.3,4335.2,18.98449865]
[1756871383763,0.001,4335.3,4335.2,8.32769865]
[1756871384166,0.001,4335.3,4335.2,7.08389865]
[1756871384361,0.001,4335.3,4335.2,7.88449865]
[1756871385387,0.2898,4335.3,4335.2,3.21389865]
[1756871385587,0.7587,4335.3,4335.2,7.08289865]
[1756871385999,0.001,4335.3,4335.2,7.08289865]
[1756871386997,0.001,4335.3,4335.2,7.88349865]
[1756871387375,2.015e-05,4335.5,4335.4,3.09859224]
[1756871387577,2.015e-05,4335.5,4335.4,12.95724547]
[1756871387802,2.015e-05,4335.5,4335.4,14.17797955]
[1756871388201,2.015e-05,4335.5,4335.4,14.29317955]
[1756871389969,0.001,4335.9,4335.5,3.0]
[1756871390175,0.4689,4337.2,4335.9,9.06491356]
[1756871390368,0.4689,4337.2,4335.9,13.36461356]
[1756871390600,0.4689,4337.0,4335.9,14.29191356]
[1756871390897,0.4689,4337.0,4336.1,3.09821987]
[1756871391106,0.4689,4337.0,4336.1,6.98928206]
[1756871391306,0.4689,4337.0,4336.1,8.21001987]
[1756871391974,0.4689,4337.0,4336.1,7.76681987]
[1756871392811,0.4689,4337.2,4336.1,8.21001987]
[1756871394705,0.7587,4336.2,4336.1,6.96621987]
[1756871395309,0.2898,4336.2,4336.1,3.09821987]
[1756871395483,1.2291,4336.2,4336.1,3.09821987]
[1756871395676,0.7587,4336.2,4336.1,3.09821987]
[1756871400731,1.2431,4336.2,4336.1,6.96521987]
[1756871400877,0.7587,4336.2,4336.1,7.90389448]
[1756871401609,1.2431,4336.2,4335.9,0.1152]
[1756871401783,7.20968731,4336.2,4336.1,2.30621987]
[1756871401985,1.2431,4336.2,4336.1,2.30621987]
[1756871402387,0.001,4336.2,4336.1,7.8246934]
[1756871402592,0.001,4336.2,4336.1,8.6250934]
[1756871403224,0.001,4336.2,4336.1,8.1379934]
[1756871403594,0.001,4336.2,4336.1,7.8246934]
[1756871403789,0.2905,4336.2,4336.1,3.9576934]
[1756871404031,0.2905,4336.2,4336.1,6.96521987]
[1756871404202,0.001,4336.2,4336.1,6.96521987]
[1756871404526,0.001,4336.2,4336.1,7.27851987]
[1756871404714,0.001,4336.2,4336.1,6.96521987]
[1756871404914,0.001,4336.2,4336.1,7.76561987]
[1756871405116,0.001,4336.4,4336.3,0.792]
[1756871405315,0.001,4336.4,4336.3,4.68206113]
[1756871405632,0.001,4336.4,4336.3,7.2784135]
[1756871406304,0.001,4336.4,4336.3,6.9651135]
[1756871406625,0.7251,4336.4,4336.3,6.9651135]
[1756871406802,0.001,4336.4,4336.3,7.78543706]
[1756871407329,0.2905,4336.4,4336.3,7.78543706]
[1756871407729,0.001,4336.4,4336.3,7.78543706]
[1756871409121,0.2905,4336.4,4336.3,7.78543706]
[1756871409337,0.7251,4336.4,4336.3,7.78543706]
[1756871409911,0.7251,4336.4,4336.3,3.91843706]
[1756871410207,1.2095,4336.4,4336.3,3.91843706]
[1756871410519,0.7251,4336.4,4336.3,6.9641135]
[1756871411499,1.2095,4336.4,4336.3,6.9641135]
[1756871412129,0.7251,4336.4,4336.3,6.9641135]
[1756871412714,0.7251,4336.4,4336.3,7.0793135]
[1756871413835,0.7251,4336.4,4336.3,3.2133135]
[1756871414031,1.2095,4336.4,4336.3,6.2873135]
[1756871415102,0.7251,4336.4,4336.3,6.2873135]
[1756871416511,0.001,4336.4,4336.3,8.62426152]
[1756871416837,0.04,4336.8,4336.7,3.0979008]
[1756871417024,0.04,4336.8,4336.7,6.9639008]
[1756871417227,0.04,4336.8,4336.7,7.7643008]
[1756871419641,0.04,4336.8,4336.7,7.2772008]
[1756871419808,0.04,4336.8,4336.7,8.24496987]
[1756871421139,0.04,4336.8,4336.7,7.93166987]
[1756871421520,0.3295,4336.8,4336.7,7.93166987]
[1756871422112,0.04,4336.8,4336.7,4.06566987]
[1756871422314,0.04,4336.8,4336.7,8.24496987]
[1756871422510,0.04,4336.8,4336.7,4.06566987]
[1756871422711,0.04,4336.8,4336.7,7.93166987]
[1756871422939,0.04,4336.8,4336.7,8.24496987]
[1756871423141,0.04,4336.8,4336.7,8.73206987]
[1756871423515,0.04,4336.8,4336.7,19.83206987]
[1756871426427,0.001,4336.9,4336.8,2.30584762]
[1756871426629,0.001,4336.9,4336.8,3.65269564]
[1756871426829,0.001,4336.9,4336.8,3.96599564]
[1756871427633,0.001,4336.9,4336.8,15.06599564]
[1756871429254,0.001,4336.9,4336.8,15.85799564]
[1756871431322,0.8925,4338.1,4337.2,3.09763497]
[1756871431556,0.001,4337.7,4337.2,8.58763497]
[1756871431864,0.001,4337.7,4337.2,9.46633497]
[1756871432155,0.001,4337.7,4337.2,20.56633497]
[1756871432351,0.001,4337.7,4337.2,16.70133497]
[1756871432559,0.001,4337.7,4337.2,21.42608299]
[1756871434967,0.001,4337.7,4337.2,10.32608299]
[1756871435566,0.001,4337.7,4337.2,21.42608299]
[1756871437536,0.001,4337.7,4337.2,17.08878299]
[1756871437882,1.2035,4337.3,4337.2,16.00558299]
[1756871438069,1.2035,4337.3,4337.2,15.14583497]
[1756871438377,1.2035,4337.3,4337.2,19.80183497]
[1756871438737,1.2035,4337.3,4337.2,8.70183497]
[1756871439571,1.2035,4337.3,4337.2,4.83783497]
[1756871439773,1.2035,4337.3,4337.2,8.70183497]
[1756871440573,0.7453,4337.3,4337.2,8.70183497]
[1756871441480,0.001,4337.3,4337.2,8.99303497]
[1756871441684,0.001,4337.3,4337.2,9.46533497]
[1756871442953,0.001,4337.3,4337.2,20.56533497]
[1756871445558,0.001,4337.3,4337.2,20.09303497]
[1756871445988,0.001,4337.3,4337.2,19.80183497]
[1756871446170,0.7453,4337.3,4337.2,19.80183497]
[1756871446874,0.7453,4337.3,4337.2,15.93783497]
[1756871447078,0.7453,4337.3,4337.2,19.80183497]
[1756871448155,0.311,4337.3,4337.2,19.80183497]
[1756871448556,0.001,4337.3,4337.2,19.80183497]
[1756871451375,0.311,4337.3,4337.2,19.80183497]
[1756871452292,0.001,4337.3,4337.2,19.80183497]
[1756871453154,0.001,4337.3,4337.2,20.09303497]
[1756871453761,0.001,4337.3,4337.2,19.80183497]
[1756871454189,1.2035,4337.3,4337.2,15.93783497]
[1756871454486,1.2035,4337.3,4337.2,19.80083497]
[1756871454689,0.7453,4337.3,4337.2,19.80083497]
[1756871454859,0.311,4337.3,4337.2,19.80083497]
[1756871458172,0.311,4337.3,4337.2,8.70083497]
[1756871458595,0.311,4337.3,4337.2,19.80083497]
[1756871460593,0.741,4337.3,4337.2,19.80083497]
[1756871460796,0.741,4337.3,4337.2,15.93783497]
[1756871461096,0.311,4337.3,4337.2,19.80083497]
[1756871461766,0.311,4337.3,4337.2,8.70083497]
[1756871462201,0.311,4337.3,4337.2,19.80083497]
[1756871462562,0.001,4337.3,4337.2,20.57893497]
[1756871462775,0.001,4337.7,4337.2,20.57893497]
[1756871462976,0.4989,4338.5,4337.7,0.792]
[1756871463178,2.055,4339.0,4337.7,0.792]
[1756871463179,0.4989,4338.8,4338.7,2.30483785]
[1756871463393,0.8145,4338.8,4338.7,6.16783785]
[1756871463704,1.2445,4338.8,4338.7,6.16783785]
[1756871464790,1.36895,4338.8,4338.6,3.9772]
[1756871465100,8.20957423,4338.7,4338.6,0.1152]
[1756871465302,8.32477423,4338.7,4338.1,0.1152]
[1756871465473,8.32477423,4338.7,4337.2,1.625]
[1756871465474,0.3156,4338.2,4337.9,3.862]
[1756871465680,0.3156,4338.2,4337.8,0.1152]
[1756871465873,0.9289,4338.1,4337.9,2.30522032]
[1756871466078,1.2445,4338.0,4337.9,2.30522032]
[1756871470807,0.7456,4338.0,4337.9,2.30522032]
[1756871471312,0.4989,4338.4,4338.1,2.30512918]
[1756871471479,0.3156,4338.2,4338.1,6.16715663]
[1756871471676,3.69299349,4339.0,4338.5,2.3049441]
[1756871471677,0.43,4338.6,4338.5,2.3049441]
[1756871471928,0.7456,4338.6,4338.5,2.3049441]
[1756871472111,0.3156,4338.6,4338.5,2.3049441]
[1756871472413,0.3156,4338.6,4338.5,2.4201441]
[1756871472414,0.7456,4338.6,4338.5,2.4201441]
[1756871476426,0.3156,4338.6,4338.5,2.4201441]
[1756871476720,0.43,4339.0,4338.9,2.30473161]
[1756871477018,1.2445,4339.0,4338.9,2.30473161]
[1756871477781,0.7456,4339.0,4338.9,2.30473161]
[1756871479254,0.1152,4339.2,4339.1,2.30462538]
[1756871479404,0.7456,4339.2,4339.1,2.30462538]
[1756871480418,1.2445,4339.2,4339.1,2.30462538]
[1756871480806,0.7456,4339.2,4339.1,2.30462538]
[1756871481208,6.9762,4339.5,4339.2,2.30457227]
[1756871481209,0.5452,4339.5,4339.2,2.30457227]
[1756871481410,0.43,4340.1,4339.2,7.75871799]
[1756871481641,0.43,4340.0,4339.2,7.85087227]
[1756871481904,2.30259848,4343.0,4339.2,8.29727227]
[1756871481905,1e-08,4339.3,4339.2,8.29727227]
[1756871482135,1e-08,4339.3,4339.2,9.26623366]
[1756871482340,1e-08,4339.3,4339.2,20.36623366]
[1756871482538,1e-08,4339.3,4339.2,23.36623366]
[1756871482744,1e-08,4339.3,4339.2,23.91143366]
[1756871482909,1e-08,4339.3,4339.2,23.36623366]
[1756871486849,1e-08,4339.8,4339.7,6.09630674]
[1756871487150,1e-08,4339.8,4339.7,13.66336244]
[1756871487354,1e-08,4339.8,4339.7,13.77856244]
[1756871487558,1e-08,4339.8,4339.7,10.77856244]
[1756871488524,1e-08,4339.8,4339.7,18.05923667]
[1756871490067,1e-08,4339.8,4339.7,6.47216244]
[1756871490240,1e-08,4339.8,4339.7,10.33216244]
[1756871490441,1e-08,4339.8,4339.7,11.27766244]
[1756871490756,1e-08,4339.8,4339.7,10.77876244]
[1756871491223,1e-08,4339.8,4339.7,13.77876244]
[1756871492115,1e-08,4339.8,4339.7,24.87876244]
[1756871493228,1e-08,4339.8,4339.7,25.37086244]
[1756871495969,1e-08,4339.8,4339.7,21.06426244]
[1756871496148,1e-08,4339.8,4339.7,28.34493667]
[1756871496349,1e-08,4339.8,4339.7,32.65053667]
[1756871497637,1e-08,4339.8,4339.7,32.20393667]
[1756871497847,1e-08,4339.8,4339.7,32.65053667]
[1756871498368,1e-08,4339.8,4339.7,21.06426244]
[1756871498668,1e-08,4339.8,4339.7,24.45106244]
[1756871499045,0.4921,4340.6,4340.5,3.09588204]
[1756871499240,0.4921,4340.6,4340.5,9.14090519]
[1756871499465,0.7878,4340.6,4340.5,9.23306637]
[1756871499771,0.7878,4340.6,4340.5,20.33306637]
[1756871500268,0.7878,4340.6,4340.5,7.90108204]
[1756871500985,0.2957,4340.6,4340.5,7.90108204]
[1756871501174,0.2957,4340.6,4340.5,14.30108204]
[1756871501374,0.7553,4340.6,4340.5,14.47823289]
[1756871502162,0.7553,4340.6,4340.5,15.27023289]
[1756871503469,0.4921,4341.0,4340.9,2.30366974]
[1756871503686,0.9517,4341.4,4341.3,2.30345748]
[1756871503853,1.243,4341.4,4341.3,6.18449205]
[1756871504049,1.243,4341.4,4341.3,6.27665748]
[1756871504782,1.243,4341.4,4341.3,12.67665748]
[1756871507666,0.7834,4341.4,4341.3,2.41865748]
[1756871507856,1.2413,4341.4,4341.3,6.27665748]
[1756871508276,1.2413,4341.4,4341.3,2.41865748]
[1756871509191,1.2413,4341.4,4341.3,6.27665748]
[1756871509393,0.2913,4341.4,4341.3,6.27665748]
[1756871509555,0.001,4341.5,4341.3,6.27665748]
[1756871509556,0.001,4341.5,4341.4,2.30340443]
[1756871509752,0.001,4341.5,4341.4,2.32643847]
[1756871509989,0.294,4341.5,4341.4,2.32643847]
[1756871510189,1.2423,4341.5,4341.4,6.16140443]
[1756871510566,0.7861,4341.5,4341.4,6.16140443]
[1756871510883,0.294,4341.5,4341.4,6.16140443]
[1756871511215,0.001,4341.5,4341.4,6.45420443]
[1756871512451,0.2923,4341.5,4341.4,2.30340443]
[1756871512757,0.2923,4341.5,4341.4,6.16140443]
[1756871513269,0.2923,4341.5,4341.4,12.56140443]
[1756871513662,0.001,4341.5,4341.4,12.56140443]
[1756871514260,0.001,4341.5,4341.4,12.85420443]
[1756871514593,0.294,4341.5,4341.4,12.56140443]
[1756871515153,0.001,4341.5,4341.4,12.56140443]
[1756871515354,0.001,4341.5,4341.4,8.70340443]
[1756871515594,0.001,4341.5,4341.4,12.56040443]
[1756871515809,0.8993,4342.0,4341.8,2.3031821]
[1756871516015,6.41065588,4341.9,4341.4,6.4]
[1756871516197,6.41065588,4341.9,4341.3,1.7382]
[1756871516198,1.09456559,4341.8,4341.7,2.41841263]
[1756871516400,1.39026559,4341.8,4341.7,6.27541263]
[1756871516586,0.2957,4341.8,4341.7,6.27541263]
[1756871516781,0.2957,4341.8,4341.7,3.9722]
[1756871516782,0.7492,4341.8,4341.7,3.9722]
[1756871517018,0.2957,4341.8,4341.7,6.27544527]
[1756871517619,3.1152,4342.3,4341.7,6.27544527]
[1756871517774,0.2913,4341.8,4341.7,6.2753976]
[1756871517974,1.2413,4341.8,4341.7,6.2753976]
[1756871518774,0.1152,4342.3,4341.8,2.30316451]
[1756871518975,0.9517,4342.2,4341.9,3.857]
[1756871519174,0.2913,4341.9,4341.7,0.1152]
[1756871519379,0.2913,4341.9,4341.8,6.16019222]
[1756871519592,0.2913,4341.9,4341.8,6.27539222]
[1756871519978,1.2246,4341.9,4341.8,3.9722]
[1756871520171,0.4754,4342.2,4341.8,6.27539222]
[1756871520422,0.3144,4341.9,4341.8,0.1152]
[1756871520578,1.34728,4341.9,4341.3,1.623]
[1756871520776,0.9104,4341.8,4341.4,3.518]
[1756871521003,0.9454,4341.7,4341.4,3.518]
[1756871521204,0.281,4341.5,4341.4,3.518]
[1756871521424,1.2245,4341.5,4341.4,3.518]
[1756871521719,1.2245,4341.5,4341.4,5.82140443]
[1756871521920,1.2245,4341.5,4341.4,3.518]
[1756871522278,1.2245,4341.5,4341.4,5.82140443]
[1756871523119,0.281,4341.5,4341.4,5.82140443]
[1756871523510,0.281,4341.5,4341.4,6.16040443]
[1756871523904,0.4754,4341.8,4341.7,2.30324527]
[1756871524322,0.7583,4341.8,4341.7,2.30324527]
[1756871524544,0.7583,4341.8,4341.6,6.16029825]
[1756871524688,0.2829,4341.8,4341.6,6.16029825]
[1756871524890,0.4754,4341.7,4341.6,6.16029825]
[1756871525084,0.2847,4341.7,4341.6,6.16029825]
[1756871525977,0.001,4341.9,4341.7,2.30323789]
[1756871526179,0.001,4341.9,4341.5,0.1152]
[1756871526180,0.471,4341.9,4341.8,3.857]
[1756871526385,0.001,4341.9,4341.8,3.857]
[1756871526584,0.3154,4341.9,4341.8,6.16019222]
[1756871527485,0.3154,4341.9,4341.8,3.857]
[1756871528296,1.2258,4341.9,4341.5,0.1152]
[1756871528630,0.3154,4341.9,4341.7,2.30324304]
[1756871528835,0.7908,4341.9,4341.8,3.857]
[1756871529006,1.2258,4341.9,4341.8,3.857]
[1756871529413,0.001,4341.9,4341.8,6.16019222]
[1756871529911,0.001,4341.9,4341.8,3.857]
[1756871529912,0.282,4341.9,4341.8,3.857]
[1756871530113,0.282,4341.9,4341.8,0.1152]
[1756871530314,0.282,4341.9,4341.8,3.9722]
[1756871530523,0.282,4341.9,4341.8,6.27539222]
[1756871531134,0.001,4341.9,4341.8,6.27539222]
[1756871532057,1.2255,4341.9,4341.8,3.9722]
[1756871532202,0.7593,4341.9,4341.8,3.9722]
[1756871532549,0.2839,4341.9,4341.8,3.9722]
[1756871532950,0.2839,4341.9,4341.8,0.1152]
[1756871533153,1.2255,4341.9,4341.8,3.857]
[1756871533444,0.7593,4341.9,4341.8,3.857]
[1756871533941,1.2255,4341.9,4341.7,3.857]
[1756871535248,9.89265588,4341.8,4341.7,3.857]
[1756871535547,10.17735588,4341.8,4341.7,3.857]
[1756871535943,3.2847,4341.8,4341.7,3.857]
[1756871536443,3.0,4341.8,4341.7,6.46594527]
[1756871536748,3.0,4341.8,4341.7,4.1627]
[1756871537044,3.0,4341.8,4341.7,3.857]
[1756871537045,3.3144,4341.8,4341.7,3.857]
[1756871537254,9.74085588,4341.8,4341.7,3.857]
[1756871537558,10.61744833,4341.8,4341.7,3.857]
[1756871538422,10.61744833,4341.8,4341.6,0.1152]
[1756871538639,0.9104,4341.7,4341.6,3.9722]
[1756871538844,0.9104,4341.7,4341.5,3.857]
[1756871539044,2.28664483,4341.6,4341.5,3.857]
[1756871539362,2.28664483,4341.6,4341.5,6.16035137]
[1756871539363,1.85164483,4341.6,4341.5,6.16035137]
[1756871539865,1.37624483,4341.6,4341.5,6.16035137]
[1756871540165,3.0,4341.8,4341.7,2.30324527]
[1756871540470,3.0,4341.8,4341.7,6.91794527]
[1756871540628,3.0,4341.8,4341.7,4.1627]
[1756871540842,3.0,4341.8,4341.7,3.857]
[1756871541061,3.281,4341.8,4341.7,6.16024527]
[1756871541244,3.0,4341.8,4341.7,6.46594527]
[1756871541455,0.001,4341.9,4341.8,2.30319222]
[1756871541627,0.001,4341.9,4341.8,3.23782414]
[1756871541827,0.001,4341.9,4341.8,3.54352414]
[1756871542264,0.001,4341.9,4341.8,3.52049222]
[1756871542463,0.001,4341.9,4341.8,3.63569222]
[1756871542661,0.001,4341.9,4341.8,4.03477604]
[1756871543649,0.001,4341.9,4341.8,10.43477604]
[1756871545326,0.001,4341.9,4341.8,13.07347604]
[1756871545539,0.001,4341.9,4341.8,12.67439222]
[1756871546272,0.001,4341.9,4341.8,12.98009222]
[1756871546571,0.001,4341.9,4341.8,13.89169222]
[1756871546755,0.001,4341.9,4341.8,2.72409222]
[1756871547063,0.001,4341.9,4341.8,7.03969222]
[1756871547277,0.001,4341.9,4341.8,7.49169222]
[1756871547970,0.001,4341.9,4341.8,7.03209222]
[1756871548347,5.95005588,4342.5,4341.8,0.8729]
[1756871548554,7.1789279,4342.5,4342.2,2.30297832]
[1756871548866,0.75887202,4342.5,4342.2,3.856]
[1756871549040,3.0,4342.6,4342.3,2.30288199]
[1756871549468,0.281,4342.4,4342.2,3.856]
[1756871550070,0.281,4342.4,4342.2,6.15895825]
[1756871550257,3.0,4342.6,4342.3,2.30292702]
[1756871550641,0.2859,4342.4,4342.3,2.30292702]
[1756871550838,3.0,4342.6,4342.4,2.30285176]
[1756871551178,3.0,4342.6,4342.2,6.15897803]
[1756871551179,3.0,4342.6,4342.5,2.30282095]
[1756871552446,0.8074643,4342.8,4342.5,2.30282095]
[1756871553172,0.8074643,4342.8,4342.7,2.3027149]
[1756871553401,0.2859,4342.8,4342.7,2.3027149]
[1756871555865,0.2859,4342.8,4342.5,3.856]
[1756871556063,0.7811,4342.8,4342.5,6.15881482]
[1756871556374,6.44625588,4342.7,4342.4,2.41807007]
[1756871556573,0.2859,4342.5,4342.4,6.27407007]
[1756871556980,0.7811,4342.5,4342.4,6.27407007]
[1756871557787,0.2859,4342.5,4342.4,6.27407007]
[1756871561098,5.95105588,4342.7,4342.6,2.30276792]
[1756871561263,6.23695588,4342.7,4342.6,2.30276792]
[1756871561462,6.23695588,4342.7,4342.4,3.9712]
[1756871561684,6.23695588,4342.7,4342.5,2.30277148]
[1756871561886,3.9584,4342.6,4342.1,3.859]
[1756871562097,5.95105588,4342.2,4342.1,0.004]
[1756871562296,6.23695588,4342.2,4342.1,0.004]
[1756871562677,7.19535588,4342.2,4342.1,0.004]
[1756871563291,6.23695588,4342.2,4342.1,2.30703309]
[1756871566106,0.2859,4342.2,4342.1,2.30703309]
[1756871566308,3.0,4342.4,4342.3,2.30292702]
[1756871566512,3.2859,4342.4,4342.3,2.30292702]
[1756871566812,3.2859,4342.4,4342.2,2.30296262]
[1756871567504,3.2859,4342.4,4342.1,0.004]
[1756871568008,3.2859,4342.4,4342.2,2.30292993]
[1756871569913,4.97643856,4342.4,4342.2,2.30292993]
[1756871570115,4.97643856,4342.4,4342.1,0.004]
[1756871570486,5.47163856,4342.4,4342.1,0.004]
[1756871571122,4.97643856,4342.4,4342.2,2.30297091]
[1756871572911,4.69053856,4342.4,4342.2,2.30297091]
[1756871574326,0.7811,4342.3,4342.1,0.004]
[1756871574521,0.2859,4342.3,4342.1,2.30702315]
[1756871574817,0.7811,4342.3,4342.1,2.30702315]
[1756871574984,0.2859,4342.3,4342.1,2.30702315]
[1756871575514,0.2859,4342.3,4342.1,0.004]
[1756871576212,0.97821222,4342.3,4342.1,2.3070222]
[1756871576393,0.69231222,4342.3,4342.2,2.59278005]
[1756871577295,0.69231222,4342.3,4342.2,2.30298005]
[1756871577826,0.97821222,4342.3,4342.1,0.004]
[1756871578185,2.26825344,4342.3,4342.1,0.004]
[1756871578532,0.69231222,4342.3,4342.2,1.1978]
[1756871578700,3.9702,4343.0,4342.3,2.30292702]
[1756871578887,0.69222117,4342.7,4342.4,0.908]
[1756871579087,0.69222117,4342.7,4342.6,2.59256792]
[1756871579617,0.69222117,4342.7,4342.6,3.51686792]
[1756871580419,0.69222117,4342.7,4342.6,1.2141]
[1756871580622,0.69222117,4342.7,4342.6,3.51686792]
[1756871581399,0.1162,4343.0,4342.9,2.30260885]
[1756871581400,0.001,4343.0,4342.9,2.30260885]
[1756871581731,0.001,4343.0,4342.9,6.29583493]
[1756871581926,0.001,4343.0,4342.9,7.49840885]
[1756871582901,0.001,4343.0,4342.9,13.89840885]
[1756871589648,0.001,4343.0,4342.9,13.46420885]
[1756871589854,0.001,4343.0,4342.9,9.43916889]
[1756871590028,0.001,4343.0,4342.9,13.29316889]
[1756871590217,0.001,4343.0,4342.9,14.21746889]
[1756871590867,0.001,4343.0,4342.9,9.43916889]
[1756871591031,0.3022,4343.0,4342.9,8.81780885]
[1756871591236,0.3022,4343.0,4342.9,12.67080885]
[1756871591431,0.761,4343.0,4342.9,6.27080885]
[1756871591773,0.761,4343.0,4342.9,3.9682]
[1756871592066,0.761,4343.0,4342.9,3.853]
[1756871592067,1.1979,4343.0,4342.9,3.853]
[1756871593358,0.3022,4343.0,4342.9,6.15560885]
[1756871593863,0.001,4343.0,4342.9,2.60390885]
[1756871594168,0.001,4343.0,4342.9,2.71910885]
[1756871595230,0.001,4343.0,4342.9,3.15230885]
[1756871596672,0.001,4343.0,4342.9,2.71910885]
[1756871596838,0.001,4343.0,4342.9,4.55391693]
[1756871597424,0.3022,4343.0,4342.9,8.81780885]
[1756871597633,0.3022,4343.0,4342.9,2.41780885]
[1756871597961,0.3022,4343.0,4342.9,6.27080885]
[1756871597962,0.761,4343.0,4342.9,6.27080885]
[1756871598259,0.3022,4343.0,4342.9,6.27080885]
[1756871598639,0.3022,4343.0,4342.9,2.41780885]
[1756871598956,1.1979,4343.0,4342.9,2.41780885]
[1756871599262,1.1979,4343.0,4342.9,3.853]
[1756871599760,1.1979,4343.0,4342.9,6.15560885]
[1756871600342,0.3022,4343.0,4342.9,6.15560885]
[1756871600942,0.001,4343.0,4342.9,6.15560885]
[1756871602060,0.001,4343.0,4342.9,6.45690885]
[1756871602565,0.001,4343.0,4342.9,7.38120885]
[1756871602765,0.3022,4343.0,4342.9,7.13552099]
[1756871603065,0.001,4343.0,4342.9,6.15560885]
[1756871603266,1.1979,4343.0,4342.5,0.004]
[1756871603432,3.0,4342.7,4342.5,0.004]
[1756871603636,1.55701325,4342.6,4342.5,0.004]
[1756871603849,5.75391325,4342.6,4342.5,0.004]
[1756871606045,8.05668117,4342.6,4342.5,0.004]
[1756871606880,2.30298005,4342.2,4341.7,0.004]
[1756871607079,18.05749781,4342.2,4341.7,0.004]
[1756871607278,21.52230578,4342.2,4341.7,0.004]
[1756871610604,19.21932573,4342.2,4341.7,0.004]
[1756871611100,21.52230578,4342.2,4341.7,0.004]
[1756871613308,21.63750578,4342.2,4341.7,0.004]
[1756871617738,21.20060578,4342.2,4341.7,0.004]
[1756871618428,21.64870578,4342.2,4341.7,0.004]
[1756871620198,21.96455243,4342.2,4341.7,0.004]
[1756871620394,21.20060578,4342.2,4341.7,0.004]
[1756871620900,21.64870578,4342.2,4341.7,0.004]
[1756871622851,20.74180578,4342.2,4341.7,0.4583]
[1756871623403,7.00610797,4342.2,4341.7,0.004]
[1756871623620,20.43560578,4342.2,4341.7,0.4583]
[1756871623823,20.71170578,4342.2,4341.7,0.004]
[1756871624428,20.71070578,4342.2,4341.7,0.004]
[1756871624631,18.40772573,4342.2,4341.7,0.004]
[1756871624800,20.71070578,4342.2,4341.7,0.004]
[1756871625829,20.43460578,4342.2,4341.7,0.004]
[1756871626602,18.13162573,4342.2,4341.7,0.004]
[1756871626936,18.13162573,4342.2,4341.8,0.4543]
[1756871627807,20.43460578,4342.2,4341.8,0.4543]